[Event "1000 GM Labor Day Super Swiss 2024"]
[Site "San Jose"]
[Date "2024.08.31"]
[Round "1.6"]
[White "Koustav Chatterjee"]
[Black "Guo, Ethan"]
[Result "1-0"]
[Annotator "TA"]
[ECO "E60"]
[WhiteElo "2524"]
[BlackElo "2211"]
[PlyCount "65"]
[EventDate "2024.08.30"]
[EventCountry "USA"]
[SourceTitle "playchess.com"]
[Source "ChessBase"]
[SourceQuality "1"]
[TimeControl "5400+30"]

{[%evp 9,65,20,27,18,7,15,7,7,0,0,0,0,0,-2,21,31,39,35,53,62,52,41,49,42,60,39,65,0,0,-12,0,-9,71,72,191,201,196,203,202,169,171,183,260,204,200,235,199,220,329,333,418,401,436,397,733,750,2450,2338]} 1. Nf3 {[%emt 0:00:03]} Nf6 {[%emt 0:06:21]} 2. c4 {[%emt 0:00:08]} g6 {[%emt 0:00:14]} 3. d4 {[%emt 0:00:06]} Bg7 {[%emt 0:00:11]} 4. e3 {[%emt 0:00:05]} O-O {[%emt 0:00:08]} 5. Be2 {[%emt 0:00:04]} c5 {[%emt 0:00:06]} 6. dxc5 {[%emt 0:00:07]} Na6 {[%emt 0:00:51][%cal Bb8a6,Ba6c5,Bc5e6][%mdl 32]} 7. O-O {[%emt 0:00:07]} Nxc5 {[%emt 0:00:06]} 8. b4 {[%emt 0:00:04] The position is equal.} Nfe4 {[%emt 0:01:34]} 9. Nd4 {[%emt 0:00:10]} Ne6 {[%emt 0:02:32]} 10. Bb2 {[%emt 0:00:06]} Qb6 {[%emt 0:06:57]} 11. a3 {[%emt 0:00:51]} a5 {[%emt 0:06:20]} 12. Nd2 {[%emt 0:13:40]} Nxd4 {[%emt 0:12:51]} 13. exd4 {[%emt 0:00:22]} d5 {[%emt 0:00:36]} 14. Nxe4 {[%emt 0:09:18]} (14. cxd5 $6 Nd6 $11) 14... dxe4 {[%emt 0:00:08]} 15. Qd2 {[%emt 0:00:02]} Rd8 {[%emt 0:02:04][%cal Rg7d4]} 16. Rfd1 {[%emt 0:01:11]} Bf5 {[%emt 0:06:03]} 17. c5 {[%emt 0:03:38]} Qe6 {[%emt 0:02:36]} 18. Rac1 {[%emt 0:05:05]} (18. bxa5 $14 h5 19. h3) 18... axb4 $11 {[%emt 0:05:18]} 19. axb4 {[%emt 0:00:12]} Bg4 {[%emt 0:01:10]} 20. Bc4 {[%emt 0:00:11]} Qf5 {[%emt 0:00:52]} (20... Qd7 $11) 21. Re1 $16 {[%emt 0:09:44][%cal Bd1e1,Be1e3,Be3e4][%mdl 32] h3 is the strong threat.} Be5 {[%emt 0:06:48]} (21... Bxd4 $16 22. Bxd4 e5) 22. d5 $18 {[%emt 0:01:44]} Bxb2 {[%emt 0:03:38]} 23. Qxb2 {[%emt 0:00:23] Strongly threatening h3.} Qg5 {[%emt 0:00:52]} 24. Kh1 {[%emt 0:02:02]} (24. Rxe4 $2 Bf3 25. Bf1 Bxe4 $19) 24... Qf4 {[%emt 0:10:33]} 25. Re3 {[%emt 0:02:32]} Rac8 {[%emt 0:06:05]} (25... Bf5 {might work better.} 26. Kg1 h5) 26. h3 {[%emt 0:01:52]} Bf5 {[%emt 0:00:17]} 27. g4 {[%emt 0:04:49]} Bd7 {[%emt 0:00:31]} 28. Rce1 {[%emt 0:00:07]} Qh6 {[%emt 0:06:27]} (28... e6 {is a better defense.} 29. Rxe4 Qf3+ 30. Kh2 exd5 31. Bxd5 Be6) 29. Kg2 {[%emt 0:01:57]} (29. Rxe4 Qxh3+ 30. Kg1 Bxg4 $16) 29... Qg5 {[%emt 0:04:43]} 30. Rxe4 {[%emt 0:01:47]} h5 {[%emt 0:00:17]} 31. f3 {[%emt 0:01:56]} ({Much less strong is} 31. Rxe7 hxg4 32. h4 Qf5) 31... hxg4 $2 {[%emt 0:00:18]} (31... Re8 32. Qc3 hxg4) 32. hxg4 {[%emt 0:00:06][%cal Od5d6] aiming for d6!} (32. Rxe7 gxf3+ 33. Kxf3 Bxh3 $15) 32... Bf5 {[%emt 0:00:54] [#]} 33. Rh1 $1 {[%emt 0:00:29] Weighted Error Value: White=0.11 (very precise) /Black=0.30.  Mistake:       	White=1     	Black=5      Inaccurate:     	---       	Black=2      OK:         	White=14    	Black=11     Best:        	White=1     	Black=1} 1-0

[Event "1000 GM Labor Day Super Swiss 2024"]
[Site "San Jose"]
[Date "2024.08.31"]
[Round "1.7"]
[White "Piasetski, Leon"]
[Black "Cordova, Emilio"]
[Result "0-1"]
[Annotator "TA"]
[ECO "A21"]
[WhiteElo "2167"]
[BlackElo "2519"]
[PlyCount "84"]
[EventDate "2024.08.30"]
[EventCountry "USA"]
[SourceTitle "playchess.com"]
[Source "ChessBase"]
[SourceQuality "1"]
[TimeControl "5400+30"]

{[%evp 13,84,9,14,-24,0,0,0,0,0,0,0,0,0,0,11,0,10,0,0,0,14,0,42,30,37,8,12,13,31,16,21,12,8,12,6,0,0,0,0,0,7,0,0,0,0,0,-5,0,0,0,7,0,0,0,0,0,0,-64,-8,-64,-42,-73,-30,-188,-218,-206,-161,-295,-281,-252,-262,-253,-250]} 1. c4 {[%emt 0:00:28]} e5 {[%emt 0:04:19]} 2. g3 {[%emt 0:00:41]} d6 {[%emt 0:00:55]} 3. Bg2 {[%emt 0:00:36]} f5 {[%emt 0:00:20]} 4. d4 {[%emt 0:02:13]} Be7 {[%emt 0:05:28]} 5. Nc3 {[%emt 0:07:20]} Nf6 {[%emt 0:01:29]} 6. dxe5 {[%emt 0:11:13]} dxe5 {[%emt 0:00:13]} 7. Qxd8+ {[%emt 0:00:07]} Bxd8 {[%emt 0:00:04]} 8. e4 {[%emt 0:09:00]} Na6 {[%emt 0:03:19]} 9. Nf3 {[%emt 0:04:01]} Nxe4 {[%emt 0:04:38]} 10. Nxe4 {[%emt 0:13:26] The position is equal.} fxe4 {[%emt 0:00:23]} 11. Nd2 {[%emt 0:03:35]} e3 {[%emt 0:00:32]} 12. fxe3 {[%emt 0:00:20]} Nb4 {[%emt 0:04:12]} 13. Be4 {[%emt 0:01:03] Inhibits Nc2+.} a5 {[%emt 0:01:56]} 14. a3 {[%emt 0:09:09]} Nc6 {[%emt 0:02:55]} 15. b3 {[%emt 0:02:15][%cal Bb2b3,Bb3b4,Bb4b5][%mdl 32]} Bh3 {[%emt 0:01:20]} 16. Bb2 {[%emt 0:04:54]} O-O {[%emt 0:03:27]} 17. Ke2 {[%emt 0:01:21][%cal Be1e2,Be2d3,Bd3c2][%mdl 32]} Ra6 {[%emt 0:02:58]} 18. Bc3 {[%emt 0:06:02]} Bf6 {[%emt 0:07:10][%cal Oc6d4]} 19. Kd3 {[%emt 0:07:30]} Raa8 {[%emt 0:09:50]} 20. b4 {[%emt 0:07:09]} Rad8+ {[%emt 0:03:45]} 21. Kc2 $1 {[%emt 0:00:11]} Bg5 {[%emt 0:04:55]} 22. b5 {[%emt 0:01:24]} Ne7 {[%emt 0:00:33][%cal Bc6e7,Be7f5,Bf5d4,Bd4e2][%mdl 32]} 23. Nf3 {[%emt 0:01:01]} Bxe3 {[%emt 0:01:36]} 24. Nxe5 {[%emt 0:00:12][%cal Oh1e1]} Bf5 {[%emt 0:17:47]} 25. Bxf5 {[%emt 0:00:11]} Nxf5 {[%emt 0:00:03]} 26. Rad1 {[%emt 0:01:23]} Bd4 {[%emt 0:05:02]} 27. Bxd4 {[%emt 0:02:50]} Nxd4+ {[%emt 0:00:12]} 28. Kc3 {[%emt 0:00:13]} Ne2+ {[%emt 0:00:17]} 29. Kc2 {[%emt 0:00:16]} Rde8 {[%emt 0:00:24]} 30. Nd3 {[%emt 0:01:28]} Re4 {[%emt 0:00:41]} 31. Kd2 {[%emt 0:00:48]} b6 {[%emt 0:01:30][%cal Oe2d4]} 32. Rhe1 {[%emt 0:00:08]} (32. Rde1 $5 Rfe8 $8 33. a4 $17) 32... Rfe8 $1 {[%emt 0:00:04]} 33. c5 {[%emt 0:01:44]} g5 {[%emt 0:01:49]} 34. cxb6 {[%emt 0:00:14]} cxb6 {[%emt 0:00:03]} 35. Ra1 {[%emt 0:00:12]} (35. Nf2 $11 R4e6 36. a4) 35... h5 {[%emt 0:02:25]} (35... Nd4 $1 $15 36. Rxe4 Rxe4) 36. Rab1 {[%emt 0:01:03]} ({White should play} 36. a4 $11) 36... Kg7 $15 {[%emt 0:00:42]} 37. Rb2 {[%emt 0:00:10]} Kg6 {[%emt 0:02:11] Black is more active.} 38. Rc2 $2 {[%emt 0:00:39] [#] White does not recover from this.} (38. a4 $1 $11 {and White stays safe.}) 38... Nd4 $1 $19 {[%emt 0:00:13][%csl LRb5,LRc2]} 39. Rxe4 {[%emt 0:00:10]} Rxe4 {[%emt 0:00:04]} 40. Rc7 {[%emt 0:00:12]} (40. Rb2 $142) 40... Re2+ {[%emt 0:00:23] Black has a decisive advantage.} (40... Nxb5 41. Rc6+ Kf5 42. Rxb6 Nxa3 43. Ra6 $17) 41. Kd1 {[%emt 0:00:11]} Rxh2 {[%emt 0:00:59]} 42. Rb7 {[%emt 0:00:11] [#]} Kf5 $1 {[%emt 0:00:21] Weighted Error Value: White=0.19 (very precise) /Black=0.09 (flawless) .  Mistake:       	White=4     	Black=1      Inaccurate:     	White=2     	Black=2      OK:         	White=18    	Black=12     Best:        	---       	Black=3      Strong:       	White=1     	Black=2} ({And not} 42... Nxb5 43. Rxb6+ $14) 0-1

[Event "1000 GM Labor Day Super Swiss 2024"]
[Site "San Jose"]
[Date "2024.08.31"]
[Round "1.8"]
[White "Schitco, Ivan"]
[Black "Zuluaga Mancilla, Cesar"]
[Result "1-0"]
[Annotator "TA"]
[ECO "A29"]
[WhiteElo "2518"]
[BlackElo "2166"]
[PlyCount "63"]
[EventDate "2024.08.30"]
[EventCountry "USA"]
[SourceTitle "playchess.com"]
[Source "ChessBase"]
[SourceQuality "1"]
[TimeControl "5400+30"]

{[%evp 19,63,0,25,2,20,-13,20,9,45,41,23,40,32,4,5,0,0,0,0,0,0,-10,-7,0,0,0,0,-13,-7,-15,0,-26,0,0,0,0,0,0,580,575,545,572,631,628,666,646]} 1. c4 {[%emt 0:00:04]} e5 {[%emt 0:00:31]} 2. Nc3 {[%emt 0:00:16]} Nf6 {[%emt 0:01:19]} 3. Nf3 {[%emt 0:00:06]} Nc6 {[%emt 0:00:50]} 4. g3 {[%emt 0:00:06]} d5 {[%emt 0:00:22]} 5. cxd5 {[%emt 0:00:06]} Nxd5 {[%emt 0:00:05]} 6. Bg2 {[%emt 0:00:05]} Nb6 {[%emt 0:00:17]} 7. O-O {[%emt 0:00:28]} Be7 {[%emt 0:00:07]} 8. d3 {[%emt 0:01:11]} O-O {[%emt 0:00:13]} 9. Be3 {[%emt 0:01:20]} Re8 {[%emt 0:04:38]} 10. Rc1 {[%emt 0:00:41]} Bf8 {[%emt 0:00:18]} 11. a4 {[%emt 0:08:23]} h6 {[%emt 0:04:25]} 12. Nd2 {[%emt 0:06:22]} (12. d4 {is more complex.} e4 13. Ne5 f5 14. g4) 12... Bd7 {[%emt 0:02:52]} 13. Nb3 {[%emt 0:03:19] The position is equal.} a5 {[%emt 0:06:18]} 14. Nc5 {[%emt 0:09:24]} Bxc5 {[%emt 0:02:30]} 15. Bxc5 {[%emt 0:00:18]} Be6 {[%emt 0:06:16]} 16. Nb5 {[%emt 0:07:46]} Nd5 {[%emt 0:04:38]} 17. Qd2 {[%emt 0:08:46]} Qd7 {[%emt 0:10:13]} 18. f4 {[%emt 0:05:42]} exf4 {[%emt 0:06:53]} 19. gxf4 {[%emt 0:00:06][%cal Of4f5] [#] f5! is the strong threat.} f5 {[%emt 0:00:09]} 20. Nd4 {[%emt 0:09:13]} Nxd4 {[%emt 0:02:45]} 21. Bxd4 {[%emt 0:00:04]} Qxa4 {[%emt 0:03:17]} 22. Be5 {[%emt 0:02:25][%cal Oe2e4] A strong pair of Bishops.} c6 {[%emt 0:01:24]} 23. Qe1 {[%emt 0:06:03]} Qb4 {[%emt 0:01:57]} 24. Qg3 {[%emt 0:00:09]} Qe7 {[%emt 0:00:06]} 25. Kh1 {[%emt 0:02:07]} Rf8 {[%emt 0:06:35]} 26. Rg1 $1 {[%emt 0:00:50] aiming for Bxd5.} Nf6 {[%emt 0:00:20]} 27. Bf3 {[%emt 0:04:26][%cal Oe5d6]} Qf7 {[%emt 0:11:56]} 28. Qh4 {[%emt 0:03:12]} Bd5 $2 {[%emt 0:07:21][%mdl 8192] [#]} (28... Ng4 29. Bxg4 fxg4 30. h3 $16) (28... Kh7 $1 $11 {and Black has nothing to worry.}) 29. e4 $1 $18 {[%emt 0:03:47] White is clearly winning.} (29. Qxh6 Ng4 30. Qh4 Rae8 $16) 29... fxe4 {[%emt 0:03:03]} 30. dxe4 {[%emt 0:00:07]} Be6 {[%emt 0:12:15]} 31. f5 {[%emt 0:00:44]} ({Not} 31. Qxh6 Bg4 32. Bxg4 (32. Rxg4 $2 {is the wrong capture.} Nxg4 33. Bxg4 gxh6 $19) 32... gxh6 $16) 31... Bd7 {[%emt 0:00:20]} 32. Rg6 {[%emt 0:01:37] Weighted Error Value: White=0.07 (flawless) /Black=0.29 (precise) .  Loses game:     	---       	Black=1      Inaccurate:     	White=3     	Black=3      OK:         	White=6     	Black=10     Strong:       	White=2     	---} 1-0

[Event "1000 GM Labor Day Super Swiss 2024"]
[Site "San Jose"]
[Date "2024.08.31"]
[Round "1.9"]
[White "Yan, Nathan"]
[Black "Delgado Ramirez, Neuris"]
[Result "0-1"]
[Annotator "TA"]
[ECO "B90"]
[WhiteElo "2160"]
[BlackElo "2485"]
[PlyCount "70"]
[EventDate "2024.08.30"]
[EventCountry "USA"]
[SourceTitle "playchess.com"]
[Source "ChessBase"]
[SourceQuality "1"]
[TimeControl "5400+30"]

{[%evp 17,70,25,25,26,25,29,8,10,20,22,40,23,85,89,79,53,56,26,33,47,47,56,172,152,368,391,347,127,108,124,99,-34,-47,-100,-79,-113,-105,-263,-262,-256,-268,-403,-402,-452,-435,-419,-382,-376,-357,-491,-451,-425,-441,-419,-372]} 1. e4 {[%emt 0:09:45]} c5 {[%emt 0:12:31]} 2. Nf3 {[%emt 0:00:10]} d6 {[%emt 0:00:23]} 3. d4 {[%emt 0:00:03]} cxd4 {[%emt 0:00:07]} 4. Nxd4 {[%emt 0:00:12]} Nf6 {[%emt 0:00:10]} 5. Nc3 {[%emt 0:00:05]} a6 {[%emt 0:00:06]} 6. Be3 {[%emt 0:00:46]} e5 {[%emt 0:00:21]} 7. Nb3 {[%emt 0:00:19]} Be6 {[%emt 0:00:14]} 8. f3 {[%emt 0:00:05]} h5 {[%emt 0:00:19]} 9. Qd2 {[%emt 0:00:27]} Nbd7 {[%emt 0:00:15]} 10. Nd5 {[%emt 0:00:43]} Nxd5 {[%emt 0:02:11]} 11. exd5 {[%emt 0:00:07]} Bf5 {[%emt 0:00:03]} 12. Be2 {[%emt 0:02:04] The position is equal.} Be7 {[%emt 0:01:00]} 13. O-O {[%emt 0:00:41]} Bg6 {[%emt 0:01:23]} 14. Na5 {[%emt 0:02:12]} Rb8 {[%emt 0:03:37]} (14... Qb8 $11) 15. c4 {[%emt 0:01:25]} f5 {[%emt 0:00:18]} 16. f4 {[%emt 0:03:06]} Nf6 {[%emt 0:03:56]} 17. Qb4 {[%emt 0:09:27] And now Bb6 would win.} exf4 {[%emt 0:03:55]} 18. Bxf4 {[%emt 0:14:08]} (18. Nxb7 $2 fxe3 19. Nxd8 Rxb4 $19) 18... Ne4 {[%emt 0:00:33]} 19. Nb3 {[%emt 0:07:46]} (19. Nxb7 $2 Qd7 20. Rab1 O-O $19 (20... Rxb7 $2 21. Qa5 $19) (20... Qxb7 $2 21. Qa4+ Kf7 22. Bf3 $19)) 19... Bf6 {[%emt 0:00:14] Against Nd4} (19... Qd7 $14) 20. Bd3 {[%emt 0:03:17] [#] Bxe4 is the strong threat.} Bxb2 $2 {[%emt 0:01:33]} (20... b5 $16) 21. Bxe4 $1 $18 {[%emt 0:08:23]} Bxa1 {[%emt 0:00:24]} 22. Bxd6 $2 {[%emt 0:01:15]} (22. Qxd6 Qxd6 23. Bxd6 Rd8 $15) (22. Rxa1 fxe4 23. Bxd6 (23. Qxd6 $2 Qxd6 24. Bxd6 Rc8 $17) 23... h4 24. Bxb8 Qxb8) (22. Nxa1 $18 {is more deadly.} fxe4 23. Bxd6 (23. Qxd6 $2 Qxd6 24. Bxd6 Rc8 $19)) 22... Bc3 $16 {[%emt 0:06:30]} 23. Qxc3 {[%emt 0:03:09]} Qxd6 {[%emt 0:00:38]} 24. Bxf5 {[%emt 0:02:38]} ({Better is} 24. Qxg7 $16 Rh7 25. Qd4) 24... O-O $1 $15 {[%emt 0:06:48]} (24... Bxf5 $2 25. Rxf5 Qb6+ 26. c5 $18) 25. Nd4 {[%emt 0:11:30]} (25. c5 $2 Qxd5 26. g4 (26. Bxg6 $2 Rxf1+ 27. Kxf1 Rf8+ 28. Ke1 Qe6+ 29. Kd1 Rf1+ 30. Kc2 Rf2+ 31. Nd2 Qxg6+ 32. Kc1 Qxg2 $19) 26... Bxf5 27. gxf5 Rxf5 28. Rxf5 Qxf5 $19) (25. Be6+ $1 $15 Kh7 26. Rc1) 25... Bxf5 {[%emt 0:05:19]} 26. Nxf5 {[%emt 0:00:19][%csl Gf5][%cal Rc3g7]} Qf6 $36 {[%emt 0:00:16][%mdl 2048] White is under strong pressure.} 27. Qb4 {[%emt 0:01:47]} (27. Qc1 $17) 27... Rf7 $19 {[%emt 0:05:40]} 28. d6 {[%emt 0:03:58] [#] Ne7+ would now be deadly.} Rbf8 $1 {[%emt 0:00:14][%cal Of6d4] ( -> ...Qd4+!)} 29. Qe1 {[%emt 0:03:06]} (29. h3 {is a better defense.} Kh7 30. Qd2) 29... Kh7 {[%emt 0:00:59]} 30. Qd1 {[%emt 0:06:16]} Qg6 {[%emt 0:04:06]} 31. Ng3 {[%emt 0:01:56]} h4 {[%emt 0:01:34]} 32. Rxf7 {[%emt 0:00:13]} Rxf7 {[%emt 0:01:14]} ({Don't play} 32... Qxf7 33. Qd3+ Kg8 34. Ne4 $19) 33. Nf1 {[%emt 0:05:00]} ({Avoid the trap} 33. d7 $2 Qb6+ (33... hxg3 $2 {loses.} 34. d8=Q $18) 34. Kh1 hxg3 $19 (34... Rxd7 $2 35. Qh5+ Qh6 36. Qxh6+ gxh6 37. Nf1 $19)) 33... Qf5 {[%emt 0:00:43]} 34. Qe1 {[%emt 0:00:40] Inhibits Qf2+.} Qc5+ {[%emt 0:02:29]} 35. Ne3 {[%emt 0:00:03]} Kg8 {[%emt 0:02:43] Weighted Error Value: White=0.52/Black=0.21 (precise) .  Loses game:     	---       	Black=1      Missed win:     	White=1     	---        Mistake:       	White=4     	Black=2      Inaccurate:     	White=4     	---        OK:         	White=8     	Black=12     Best:        	White=1     	Black=2      Strong:       	White=1     	Black=2} 0-1

[Event "1000 GM Labor Day Super Swiss 2024"]
[Site "San Jose"]
[Date "2024.08.31"]
[Round "1.10"]
[White "Sheng, Joshua"]
[Black "Montes Orozco, Miguel Angel"]
[Result "1-0"]
[Annotator "TA"]
[ECO "A20"]
[WhiteElo "2474"]
[BlackElo "2155"]
[PlyCount "119"]
[EventDate "2024.08.30"]
[EventCountry "USA"]
[SourceTitle "playchess.com"]
[Source "ChessBase"]
[SourceQuality "1"]
[TimeControl "5400+30"]

{[%evp 25,119,0,0,0,25,20,19,0,37,8,102,69,74,89,85,89,116,107,154,159,160,172,233,229,249,249,235,227,227,222,231,225,218,220,247,252,231,211,163,229,203,206,261,260,290,302,307,294,304,215,216,216,289,281,290,289,364,233,233,108,130,132,310,184,163,154,221,262,454,433,948,888,4770,0,4766,4766,1832,1033,29975,29976,29976,29979,29978,29980,29980,29980,29980,29981,29980,29981,29984,29985,29985,29986,29986,29987]} 1. c4 {[%emt 0:01:31]} e5 {[%emt 0:00:35]} 2. d3 {[%emt 0:00:26]} Nf6 {[%emt 0:00:45]} 3. Nf3 {[%emt 0:00:05]} Nc6 {[%emt 0:02:15]} 4. a3 {[%emt 0:00:55]} a5 {[%emt 0:04:49]} 5. Nc3 {[%emt 0:00:04]} d5 {[%emt 0:00:26]} 6. cxd5 {[%emt 0:00:09]} Nxd5 {[%emt 0:00:07]} 7. Bd2 {[%emt 0:02:37]} Nb6 {[%emt 0:04:58]} 8. g3 {[%emt 0:01:19]} Be7 {[%emt 0:01:10]} 9. Bg2 {[%emt 0:00:33]} Be6 {[%emt 0:01:54]} 10. O-O {[%emt 0:02:33]} f5 {[%emt 0:04:29]} 11. Be3 {[%emt 0:05:21]} O-O {[%emt 0:01:31]} 12. Rc1 {[%emt 0:05:06]} Nd5 {[%emt 0:05:47]} 13. Bd2 {[%emt 0:12:23]} Nb6 {[%emt 0:04:39]} 14. Be3 {[%emt 0:05:14]} Nd5 {[%emt 0:00:28]} 15. Nxd5 {[%emt 0:00:39]} Bxd5 {[%emt 0:00:13]} 16. Qa4 {[%emt 0:00:10]} Bf6 {[%emt 0:33:08]} 17. Rc5 {[%emt 0:11:01]} Qd6 {[%emt 0:11:48]} (17... Kh8 $11 {keeps the balance.}) 18. Rfc1 {[%emt 0:04:48]} Ne7 {[%emt 0:05:15]} 19. Nd2 {[%emt 0:45:06]} c6 {[%emt 0:08:37]} 20. Rxa5 {[%emt 0:00:00]} b5 {[%emt 0:01:27]} 21. Qb4 {[%emt 0:00:00]} Qxb4 {[%emt 0:00:45]} (21... Qe6 $142) 22. axb4 $16 {[%emt 0:00:00]} Rac8 {[%emt 0:02:45]} 23. Bc5 {[%emt 0:00:00]} Rfd8 {[%emt 0:01:00]} (23... Bxg2 $142 24. Kxg2 Rfd8) 24. Ra7 $18 {[%emt 0:00:00]} Kf7 {[%emt 0:01:04]} 25. e4 {[%emt 0:00:00]} fxe4 {[%emt 0:01:52]} 26. dxe4 {[%emt 0:00:00]} Be6 {[%emt 0:00:32]} 27. Nf3 {[%emt 0:00:00]} Rd7 {[%emt 0:00:07]} 28. Rxd7 $1 {[%emt 0:00:00]} Bxd7 {[%emt 0:00:05]} 29. Ra1 {[%emt 0:00:00]} Bg4 {[%emt 0:01:35]} 30. Ra7 {[%emt 0:00:00]} Rd8 {[%emt 0:00:12]} 31. Nxe5+ {[%emt 0:00:00]} (31. Rxe7+ $6 Bxe7 32. Nxe5+ Ke6 33. Nxg4 Bxc5 34. bxc5 Rd2) 31... Bxe5 {[%emt 0:00:06]} 32. Rxe7+ {[%emt 0:00:00]} Kf6 {[%emt 0:00:06]} 33. h3 {[%emt 0:00:00]} Be6 {[%emt 0:01:17]} 34. Rb7 {[%emt 0:00:00]} Rd1+ {[%emt 0:00:12]} 35. Kh2 {[%emt 0:00:00]} Bxb2 {[%emt 0:00:55]} 36. f4 {[%emt 0:00:00]} Rd2 {[%emt 0:00:19]} 37. Be7+ {[%emt 0:00:00]} Kf7 {[%emt 0:00:29]} 38. Bd6+ $1 {[%emt 0:00:00]} Kf6 {[%emt 0:00:33]} 39. Bf8 {[%emt 0:00:00]} Bd7 {[%emt 0:00:48]} 40. e5+ $1 {[%emt 0:00:00]} Kf5 {[%emt 0:00:32]} 41. Bxg7 {[%emt 0:00:00]} h5 {[%emt 0:00:19] [#]} 42. Bf6 {[%emt 0:00:00]} (42. Bh6 $1 $18 {and the rest is easy.}) 42... c5 {[%emt 0:01:01] [#]} 43. Rb6 $1 {[%emt 0:00:00]} (43. bxc5 $2 Bc6 (43... Rxg2+ $2 44. Kxg2 Bc6+ 45. Kf2 $19) 44. Kg1 Rxg2+ (44... Bxg2 $2 45. Rd7 $19) 45. Kf1 Bxb7 $19) 43... c4 $2 {[%emt 0:00:10]} (43... Be6 $16 44. g4+ (44. Rxb5 $2 Bd5 $19) 44... hxg4 45. hxg4+ (45. Rxb5 $2 Bd5 $19) 45... Kxg4 46. Rxe6 cxb4) 44. Bg7 {[%emt 0:00:00]} (44. Bh8 $142 {[%csl Ge5,Gh8][%cal Rb6f6]} Be6 45. g4+ (45. Rxb5 $2 c3 $19) 45... hxg4 46. hxg4+ (46. Rxb5 $2 gxh3 47. Kxh3 c3 $19) 46... Kxg4 47. Rxe6) 44... Be6 $18 {[%emt 0:00:41]} 45. g4+ $1 {[%emt 0:00:00]} (45. Rxb5 $2 c3 46. g4+ hxg4 $19) 45... hxg4 {[%emt 0:00:05]} (45... Kg6 $16 46. gxh5+ (46. Rxe6+ Kxg7 47. gxh5 c3 $18) 46... Kxg7 47. Rxe6 c3) 46. hxg4+ $18 {[%emt 0:00:00]} (46. Rxb5 $2 {is the wrong capture.} gxh3 (46... Kxf4 $2 47. Bh6+ Kf5 48. hxg4+ Kg6 49. Bxd2 $18) 47. Kxh3 c3 $19 (47... Kxf4+ $2 48. Kh2 $19)) 46... Kxg4 $2 {[%emt 0:01:07]} (46... Kg6 {might work better.}) 47. Rxe6 $18 {[%emt 0:00:00]} c3 {[%emt 0:00:04]} (47... Kxf4 $142 48. Kh3 (48. Bh6+ Kf5 $18) 48... c3) 48. Rg6+ $18 {[%emt 0:00:24]} Kf5 {[%emt 0:00:21]} 49. Rf6+ {[%emt 0:02:26]} Kg4 {[%emt 0:00:04]} 50. e6 {[%emt 0:00:17]} Re2 {[%emt 0:00:47]} 51. Rf7 {[%emt 0:00:44]} Bc1 {[%emt 0:00:36]} 52. Be5 {[%emt 0:02:53]} c2 {[%emt 0:00:24]} 53. e7 {[%emt 0:00:11]} Rxe5 {[%emt 0:00:49]} 54. fxe5 {[%emt 0:00:29]} Bf4+ {[%emt 0:00:06]} 55. Rxf4+ $1 {[%emt 0:00:02]} Kxf4 {[%emt 0:00:06]} 56. e8=Q {[%emt 0:11:04]} (56. e8=B $2 {loses.} c1=Q (56... c1=B $2 57. e6 $18) (56... Kxe5 $2 57. Bxb5 c1=Q 58. Be8 $19) 57. Bxb5 Kxe5 $19) 56... c1=Q {[%emt 0:00:06]} 57. Qc6 {[%emt 0:00:00]} Qc4 {[%emt 0:01:48]} 58. Qxc4+ {[%emt 0:00:00]} bxc4 {[%emt 0:00:05]} 59. e6 {[%emt 0:00:00]} c3 {[%emt 0:00:10]} 60. Be4 {[%emt 0:00:00]} 1-0

[Event "1000 GM Labor Day Super Swiss 2024"]
[Site "San Jose"]
[Date "2024.08.31"]
[Round "1.11"]
[White "Alfaro, William"]
[Black "Macovei, Andrei"]
[Result "0-1"]
[Annotator "RC"]
[ECO "E64"]
[WhiteElo "2137"]
[BlackElo "2466"]
[PlyCount "56"]
[EventDate "2024.08.30"]
[EventCountry "USA"]
[SourceTitle "playchess.com"]
[Source "ChessBase"]
[SourceQuality "1"]
[TimeControl "5400+30"]

1. d4 {[%emt 0:21:33]} Nf6 {[%emt 0:00:13]} 2. c4 {[%emt 0:00:15]} g6 {[%emt 0:00:35]} 3. Nf3 {[%emt 0:00:05]} Bg7 {[%emt 0:00:04]} 4. g3 {[%emt 0:00:02]} O-O {[%emt 0:01:31]} 5. Bg2 {[%emt 0:00:16]} d6 {[%emt 0:01:04]} 6. Nc3 {[%emt 0:00:12]} c5 {[%emt 0:00:19]} 7. d5 {[%emt 0:00:09]} e6 {[%emt 0:00:17]} 8. O-O {[%emt 0:00:05]} Re8 {[%emt 0:00:09]} 9. Ng5 {[%emt 0:00:40]} exd5 {[%emt 0:10:41]} 10. Bxd5 {[%emt 0:02:35]} Nxd5 {[%emt 0:01:14]} 11. Qxd5 {[%emt 0:00:05]} Re7 {[%emt 0:05:09]} 12. Bf4 {[%emt 0:00:11]} h6 {[%emt 0:09:27]} 13. Nge4 {[%emt 0:03:28]} Be6 {[%emt 0:03:51]} 14. Qxd6 {[%emt 0:07:55]} Rd7 {[%emt 0:01:28]} 15. Qxc5 {[%emt 0:00:15]} Nc6 {[%emt 0:03:43]} 16. Qe3 {[%emt 0:06:55]} g5 {[%emt 0:30:28]} 17. Nxg5 {[%emt 0:07:58]} hxg5 {[%emt 0:01:07]} 18. Bxg5 {[%emt 0:00:06]} Qb6 {[%emt 0:05:55]} 19. Rad1 {[%emt 0:15:29]} Qxe3 {[%emt 0:07:35]} 20. Bxe3 {[%emt 0:00:11]} Rad8 {[%emt 0:04:36]} 21. Nd5 {[%emt 0:14:51]} Bxb2 {[%emt 0:01:31]} 22. Bg5 {[%emt 0:00:42]} Rc8 {[%emt 0:01:36]} 23. Rd2 {[%emt 0:02:10]} Bg7 {[%emt 0:00:11]} 24. Rfd1 {[%emt 0:00:15]} Kh7 {[%emt 0:02:05]} 25. f4 {[%emt 0:10:20]} Na5 {[%emt 0:01:51]} 26. f5 {[%emt 0:00:01]} Bxf5 {[%emt 0:02:08]} 27. Nf6+ {[%emt 0:03:41]} Bxf6 {[%emt 0:00:07]} 28. Rxd7 {[%emt 0:00:02]} Bxd7 {[%emt 0:00:30]} 0-1